fUSD/lending_fUSD_20240511
["ID","MTS","AMOUNT","RATE_DAILY","PERIOD"]
[326828815,1715470242929,-151.0,0.000152,2]
[326828816,1715470242939,-386.19,0.00015272,2]
[326828817,1715470242949,-9606.44046729,0.00015355,2]
[326828818,1715470242958,-3000.0,0.0001537,2]
[326828819,1715470242968,-15620.46610158,0.000154,2]
[326828820,1715470242978,-183.12764412,0.000154,2]
[326828823,1715470242987,-164.446701,0.000154,2]
[326828825,1715470242997,-164.446701,0.000154,2]
[326828826,1715470243006,-151.0,0.000154,2]
[326828827,1715470243015,-839.584915,0.000154,2]
[326828829,1715470243024,-266.252148,0.000154,2]
[326828830,1715470243034,-839.584915,0.000154,2]
[326828831,1715470243043,-151.0,0.000154,2]
[326828832,1715470243052,-151.0,0.000154,2]
[326828833,1715470243062,-17706.0,0.000154,3]
[326828834,1715470243071,-152.476444,0.000154,2]
[326828835,1715470243081,-157.564816,0.000154,2]
[326828836,1715470243092,-157.564816,0.000154,2]
[326828837,1715470243101,-199.863504,0.000154,2]
[326828838,1715470243111,-151.0,0.000154,2]
[326828839,1715470243120,-151.0,0.000154,2]
[326828840,1715470243129,-155.0,0.000155,2]
[326828841,1715470243138,-151.0,0.000155,2]
[326828842,1715470243148,-193.16034,0.000155,2]
[326828843,1715470243157,-151.0,0.000155,2]
[326828844,1715470243165,-151.0,0.000155,2]
[326828845,1715470243174,-332.098345,0.000155,2]
[326828846,1715470243183,-151.0,0.000155,2]
[326828847,1715470243192,-332.098345,0.000155,2]
[326828848,1715470243201,-193.16034,0.000155,2]
[326828849,1715470243210,-151.0,0.000155,2]
[326828850,1715470243219,-151.0,0.000155,2]
[326828851,1715470243228,-177.355186,0.000155,2]
[326828852,1715470243237,-151.0,0.000155,2]
[326828853,1715470243246,-177.355186,0.000155,2]
[326828854,1715470243256,-157.188312,0.000155,2]
[326828855,1715470243266,-157.188312,0.000155,2]
[326828856,1715470243275,-150.0,0.000155,2]
[326828857,1715470243284,-150.0,0.000155,2]
[326828858,1715470243294,-250.744323,0.00015616,2]
[326828859,1715470243303,-151.0,0.00015618,2]
[326828860,1715470243312,-151.0,0.00015618,2]
[326828861,1715470243322,-151.0,0.00015618,2]
[326828862,1715470243332,-151.0,0.00015618,2]
[326828863,1715470243341,-151.0,0.00015618,2]
[326828864,1715470243350,-679.23,0.00015645,2]
[326828865,1715470243359,-168.19,0.00015657,2]
[326828866,1715470243368,-17706.0,0.000157,5]
[326828867,1715470243377,-254.58205557,0.00015733,2]
[326828868,1715470243386,-9606.44046729,0.00015809,2]
[326828869,1715470243395,-169.53,0.00015831,2]
[326828870,1715470243405,-164.05,0.00015831,2]
[326828871,1715470243414,-170.16,0.00015831,2]
[326828872,1715470243423,-151.0,0.00015831,2]
[326828873,1715470243433,-151.0,0.00015831,2]
[326828874,1715470243442,-151.0,0.00015831,2]
[326828875,1715470243452,-151.313221,0.00015831,2]
[326828876,1715470243460,-151.0,0.00015831,2]
[326828877,1715470243470,-151.0,0.00015831,2]
[326828878,1715470243709,-555.3302423,0.0001585,2]
[326828879,1715470243719,-916.47227892,0.00015882,2]
[326828880,1715470243729,-1023.66334098,0.00015899,2]
[326828881,1715470243738,-3019.35,0.00015903,2]
[326828882,1715470243747,-22139.3508147,0.0001596,2]
[326828883,1715470243757,-708.3763082,0.0001596,2]
[326828884,1715470243767,-3057.0201791,0.00015971,2]
[326828885,1715470243776,-12841.95772733,0.00015982,2]
[326828886,1715470243786,-151.0,0.00015982,2]
[326828887,1715470243795,-151.0,0.00015982,2]
[326828888,1715470243805,-175.132502,0.00015982,2]
[326828889,1715470243814,-175.132502,0.00015982,2]
[326828890,1715470243829,-151.0,0.00015982,2]
[326828891,1715470243838,-151.0,0.00015982,2]
[326828892,1715470243847,-151.0,0.00015982,2]
[326828895,1715470243857,-151.0,0.00015982,2]
[326828898,1715470243867,-151.0,0.00015982,2]
[326828901,1715470243876,-151.0,0.00015982,2]
[326828903,1715470243886,-1778.88948475,0.00016,2]
[326828905,1715470243895,-694.0,0.00016,2]
[326828907,1715470243906,-2000.0,0.00016,2]
[326828909,1715470243915,-150.0,0.00016,2]
[326828911,1715470243925,-150.0,0.00016,2]
[326828913,1715470243934,-2000.0,0.0001601,2]
[326828915,1715470243944,-155.44797374,0.00016012,2]
[326828916,1715470243954,-2000.0,0.0001602,2]
[326828917,1715470243964,-2000.0,0.0001603,2]
[326828918,1715470243973,-2000.0,0.0001604,2]
[326828919,1715470243982,-2000.0,0.0001605,2]
[326828920,1715470243991,-2000.0,0.0001606,2]
[326828921,1715470244000,-2000.0,0.0001607,2]
[326828922,1715470244010,-150.0,0.00016072,2]
[326828923,1715470244019,-2000.0,0.0001608,2]
[326828924,1715470244028,-2000.0,0.0001609,2]
[326828925,1715470244038,-2000.0,0.000161,2]
[326828926,1715470244047,-3170.272829,0.0001611,2]
[326828927,1715470244056,-4755.26,0.00016116,2]
[326828928,1715470244066,-504.00369942,0.00016134,2]
[326828929,1715470244075,-156.75019115,0.00016134,2]
[326828930,1715470244085,-150.16275751,0.00016139,2]
[326828931,1715470244094,-3932.18,0.00016164,2]
[326828932,1715470244104,-152.34592658,0.00016172,2]
[326828933,1715470244113,-504.00369942,0.000162,2]
[326828934,1715470244122,-237.26710164,0.00016252,2]
[326828935,1715470244132,-9606.44046729,0.00016264,2]
[326828936,1715470244141,-152.34592658,0.00016271,2]
[326828937,1715470244150,-152.34592658,0.00016299,2]
[326828938,1715470244160,-151.0,0.000163,2]
[326828939,1715470244169,-151.0,0.000163,2]
[326828940,1715470244178,-151.0,0.000163,2]
[326828941,1715470244187,-383.152357,0.000163,2]
[326828942,1715470244197,-204.031207,0.000163,2]
[326828943,1715470244207,-383.152357,0.000163,2]
[326828944,1715470244217,-204.031207,0.000163,2]
[326828945,1715470244227,-181.36232,0.000163,2]
[326828946,1715470244236,-181.36232,0.000163,2]
[326828947,1715470244245,-151.0,0.000163,2]
[326828948,1715470244255,-151.0,0.000163,2]
[326828949,1715470244264,-151.0,0.000163,2]
[326828950,1715470244274,-151.0,0.000163,2]
[326828951,1715470244283,-541.495133,0.000163,2]
[326828952,1715470244292,-541.495133,0.000163,2]
[326828953,1715470244303,-461.067493,0.000163,2]
[326828954,1715470244312,-461.067493,0.000163,2]
[326828955,1715470244322,-653.377762,0.000163,2]
[326828956,1715470244332,-653.377762,0.000163,2]
[326828957,1715470244341,-151.0,0.000163,2]
[326828958,1715470244350,-580.794439,0.000163,2]
[326828959,1715470244360,-580.794439,0.000163,2]
[326828960,1715470244369,-490.575787,0.000163,2]
[326828961,1715470244379,-490.575787,0.000163,2]
[326828962,1715470244388,-190.019864,0.000163,2]
[326828963,1715470244397,-190.019864,0.000163,2]
[326828964,1715470244406,-151.0,0.000163,2]
[326828965,1715470244415,-152.92503661,0.00016315,2]
[326828966,1715470244425,-152.34592658,0.00016332,2]
[326828967,1715470244434,-152.3335532,0.00016346,2]
[326828968,1715470244443,-152.34592658,0.00016371,2]
[326828969,1715470244453,-150.16275751,0.00016387,2]
[326828970,1715470244463,-152.34592658,0.00016393,2]
[326828971,1715470244472,-224.116612,0.000164,2]
[326828972,1715470244482,-224.116612,0.000164,2]
[326828973,1715470244491,-151.0,0.000164,2]
[326828974,1715470244503,-151.0,0.000164,2]
[326828975,1715470244512,-320.77,0.00016408,2]
[326828976,1715470244522,-170.70899975,0.00016416,2]
[326828977,1715470244532,-158.56766911,0.00016436,2]
[326828978,1715470244542,-250.744323,0.00016438,2]
[326828979,1715470244551,-200.0,0.00016438,2]
[326828980,1715470244560,-10463.98,0.00016438,2]
[326828981,1715470244570,-300.0,0.00016438,2]
[326828982,1715470244580,-203.182295,0.00016438,2]
[326828983,1715470244589,-203.182295,0.00016438,2]
[326828984,1715470244598,-152.92503661,0.00016487,2]
[326828985,1715470244607,-1226.23788858,0.000165,2]
[326828986,1715470244617,-223.0,0.000165,2]
[326828987,1715470244626,-353.0,0.000165,2]
[326828988,1715470244635,-1000.0,0.000165,2]
[326828989,1715470244644,-150.0,0.000165,2]
[326828990,1715470244654,-150.0,0.000165,2]
[326828991,1715470244663,-203.88,0.00016526,2]
[326828992,1715470244673,-150.0,0.00016526,2]
[326828993,1715470244683,-150.16275751,0.00016545,2]
[326828994,1715470244692,-154.18865062,0.00016555,2]
[326828995,1715470244701,-555.3302423,0.00016555,2]
[326828996,1715470244710,-254.58205557,0.00016567,2]
[326828997,1715470244721,-504.00369942,0.00016586,2]
[326828998,1715470244732,-150.0,0.00016605,2]
[326828999,1715470244742,-155.44797374,0.00016616,2]
[326829000,1715470244753,-152.3335532,0.00016633,2]
[326829001,1715470244762,-504.00369942,0.0001666,2]
[326829002,1715470244772,-177.84,0.00016712,2]
[326829003,1715470244782,-302.07,0.00016712,2]
[326829004,1715470244791,-9606.44046729,0.00016718,2]
[326829005,1715470244801,-150.16275751,0.0001675,2]
[326829006,1715470244810,-504.00369942,0.00016761,2]
[326829007,1715470244819,-155.85437133,0.00016782,2]
[326829008,1715470244829,-150.0,0.00016797,2]
[326829009,1715470244838,-386.19,0.00016799,2]
[326829010,1715470244847,-161.27820192,0.00016841,2]
[326829011,1715470244857,-1023.66334098,0.00016899,2]
[326829012,1715470244866,-150.16275751,0.00016921,2]
[326829013,1715470244875,-237.26710164,0.0001693,2]
[326829014,1715470244884,-19027.59205868,0.00017,2]
[326829015,1715470244893,-500.0,0.00017,2]
[326829016,1715470244902,-1000.0,0.00017,2]
[326829017,1715470244911,-150.0,0.00017,2]
[326829018,1715470244921,-150.0,0.00017,2]
[326829019,1715470244930,-504.00369942,0.00017009,2]
[326829020,1715470244939,-153.97788332,0.00017038,2]
[326829021,1715470244949,-152.3335532,0.00017053,2]
[326829022,1715470244958,-679.23,0.00017067,2]
[326829023,1715470244967,-156.75019115,0.00017125,2]
[326829024,1715470244976,-169.07753109,0.00017127,2]
[326829025,1715470244986,-164.05,0.00017137,2]
[326829026,1715470244995,-150.0,0.00017142,2]
[326829027,1715470245004,-9606.44046729,0.00017173,2]
[326829028,1715470245014,-161.27820192,0.00017201,2]
[326829029,1715470245024,-155.59028939,0.0001721,2]
[326829030,1715470245033,-504.00369942,0.00017227,2]
[326829031,1715470245042,-153.61655889,0.0001726,2]
[326829032,1715470245053,-250.744323,0.0001726,2]
[326829033,1715470245063,-152.3335532,0.00017272,2]
[326829034,1715470245073,-152.34592658,0.00017277,2]
[326829035,1715470245083,-702.62,0.00017348,2]
[326829036,1715470245092,-152.34592658,0.00017364,2]
[326829037,1715470245101,-394.466583,0.00017388,2]
[326829038,1715470245111,-183749.0,0.000174,2]
[326829039,1715470245120,-254.58205557,0.000174,2]
[326829040,1715470245129,-151.0,0.000174,2]
[326829041,1715470245138,-204.341608,0.000174,2]
[326829042,1715470245147,-151.0,0.000174,2]
[326829043,1715470245157,-234.175558,0.000174,2]
[326829044,1715470245166,-151.0,0.000174,2]
[326829045,1715470245175,-151.0,0.000174,2]
[326829046,1715470245184,-151.0,0.000174,2]
[326829047,1715470245193,-151.0,0.000174,2]
[326829048,1715470245202,-151.0,0.000174,2]
[326829049,1715470245214,-151.0,0.000174,2]
[326829050,1715470245225,-151.0,0.000174,2]
[326829051,1715470245235,-151.0,0.000174,2]
[326829052,1715470245245,-151.0,0.000174,2]
[326829053,1715470245255,-151.0,0.000174,2]
[326829054,1715470245265,-151.0,0.000174,2]
[326829055,1715470245275,-151.0,0.000174,2]
[326829056,1715470245283,-175.132502,0.000174,2]
[326829057,1715470245293,-175.132502,0.000174,2]
[326829058,1715470245303,-151.0,0.000174,2]
[326829059,1715470245312,-151.0,0.000174,2]
[326829060,1715470245321,-151.0,0.000174,2]
[326829061,1715470245331,-151.0,0.000174,2]
[326829062,1715470245340,-151.542779,0.000174,2]
[326829063,1715470245349,-151.0,0.000174,2]
[326829064,1715470245359,-151.0,0.000174,2]
[326829065,1715470245368,-151.0,0.000174,2]
[326829066,1715470245377,-151.0,0.000174,2]
[326829067,1715470245386,-175.527306,0.000174,2]
[326829068,1715470245395,-151.0,0.000174,2]
[326829069,1715470245404,-151.0,0.000174,2]
[326829070,1715470245413,-175.527306,0.000174,2]
[326829071,1715470245422,-151.0,0.000174,2]
[326829072,1715470245431,-254.469746,0.000174,2]
[326829073,1715470245440,-254.469746,0.000174,2]
[326829074,1715470245449,-156.494903,0.000174,2]
[326829075,1715470245459,-151.0,0.000174,2]
[326829076,1715470245468,-151.0,0.000174,2]
[326829077,1715470245477,-225.403238,0.000174,2]
[326829078,1715470245486,-225.403238,0.000174,2]
[326829079,1715470245495,-151.0,0.000174,2]
[326829080,1715470245504,-193.16034,0.000174,2]
[326829081,1715470245514,-151.0,0.000174,2]
[326829082,1715470245523,-152.536971,0.000174,2]
[326829083,1715470245533,-332.098345,0.000174,2]
[326829084,1715470245542,-332.098345,0.000174,2]
[326829085,1715470245551,-151.0,0.000174,2]
[326829086,1715470245561,-193.16034,0.000174,2]
[326829087,1715470245571,-151.0,0.000174,2]
[326829088,1715470245580,-151.0,0.000174,2]
[326829089,1715470245590,-177.355186,0.000174,2]
[326829090,1715470245600,-151.0,0.000174,2]
[326829091,1715470245609,-177.355186,0.000174,2]
[326829092,1715470245619,-164.446701,0.000174,2]
[326829093,1715470245628,-157.188312,0.000174,2]
[326829094,1715470245637,-164.446701,0.000174,2]
[326829095,1715470245646,-157.188312,0.000174,2]
[326829096,1715470245656,-151.0,0.000174,2]
[326829097,1715470245665,-839.584915,0.000174,2]
[326829098,1715470245674,-839.584915,0.000174,2]
[326829099,1715470245683,-151.0,0.000174,2]
[326829100,1715470245693,-151.0,0.000174,2]
[326829101,1715470245702,-157.564816,0.000174,2]
[326829102,1715470245712,-157.564816,0.000174,2]
[326829103,1715470245722,-151.0,0.000174,2]
[326829104,1715470245732,-151.0,0.000174,2]
[326829105,1715470245741,-156.826648,0.000174,2]
[326829106,1715470245751,-151.0,0.000174,2]
[326829107,1715470245760,-197.479498,0.000174,2]
[326829108,1715470245769,-501.542542,0.000174,2]
[326829109,1715470245779,-151.0,0.000174,2]
[326829110,1715470245788,-151.0,0.000174,2]
[326829111,1715470245797,-151.0,0.000174,2]
[326829112,1715470245806,-501.542542,0.000174,2]
[326829113,1715470245815,-151.0,0.000174,2]
[326829114,1715470245830,-151.0,0.000174,2]
[326829115,1715470245839,-555.020162,0.000174,2]
[326829116,1715470245850,-555.020162,0.000174,2]
[326829117,1715470245860,-474.414101,0.000174,2]
[326829118,1715470245871,-151.0,0.000174,2]
[326829119,1715470245880,-151.0,0.000174,2]
[326829120,1715470245890,-474.414101,0.000174,2]
[326829121,1715470245899,-151.0,0.000174,2]
[326829122,1715470245911,-151.0,0.000174,2]
[326829123,1715470245920,-151.0,0.000174,2]
[326829124,1715470245930,-151.0,0.000174,2]
[326829125,1715470245939,-1318.271887,0.000174,2]
[326829126,1715470245948,-1318.271887,0.000174,2]
[326829127,1715470245958,-151.0,0.000174,2]
[326829128,1715470246054,-151.0,0.000174,2]
[326829129,1715470246063,-151.0,0.000174,2]
[326829130,1715470246072,-520.3013,0.000174,2]
[326829131,1715470246082,-186.632564,0.000174,2]
[326829132,1715470246091,-520.3013,0.000174,2]
[326829133,1715470246100,-186.632564,0.000174,2]
[326829134,1715470246109,-174.543055,0.000174,2]
[326829135,1715470246118,-151.0,0.000174,2]
[326829136,1715470246127,-151.0,0.000174,2]
[326829137,1715470246137,-182.09688,0.000174,2]
[326829138,1715470246145,-151.0,0.000174,2]
[326829139,1715470246154,-182.09688,0.000174,2]
[326829140,1715470246163,-151.0,0.000174,2]
[326829141,1715470246172,-309.748889,0.000174,2]
[326829142,1715470246182,-203.182295,0.000174,2]
[326829143,1715470246191,-203.182295,0.000174,2]
[326829144,1715470246201,-309.748889,0.000174,2]
[326829145,1715470246212,-151.0,0.000174,2]
[326829146,1715470246222,-151.0,0.000174,2]
[326829147,1715470246232,-2609.318703,0.000174,2]
[326829148,1715470246242,-152.92503661,0.00017458,2]
[326829149,1715470246252,-152.92503661,0.0001746,2]
[326829150,1715470246261,-2500.0,0.000175,2]
[326829151,1715470246270,-150.0,0.000175,2]
[326829152,1715470246279,-150.0,0.000175,2]
[326829153,1715470246288,-100000.0,0.0001753,2]
[326829154,1715470246297,-224.116612,0.0001753,2]
[326829155,1715470246307,-224.116612,0.0001753,2]
[326829156,1715470246315,-151.0,0.0001753,2]
[326829157,1715470246324,-151.0,0.0001753,2]
[326829158,1715470246334,-151.0,0.0001753,2]
[326829159,1715470246343,-151.0,0.0001753,2]
[326829160,1715470246352,-211.981732,0.0001753,2]
[326829161,1715470246361,-383.152357,0.0001753,2]
[326829162,1715470246370,-204.031207,0.0001753,2]
[326829163,1715470246379,-383.152357,0.0001753,2]
[326829164,1715470246388,-204.031207,0.0001753,2]
[326829165,1715470246397,-181.36232,0.0001753,2]
[326829166,1715470246406,-181.36232,0.0001753,2]
[326829167,1715470246415,-151.0,0.0001753,2]
[326829168,1715470246425,-152.288496,0.0001753,2]
[326829169,1715470246434,-203.757074,0.0001753,2]
[326829170,1715470246443,-541.495133,0.0001753,2]
[326829171,1715470246451,-541.495133,0.0001753,2]
[326829172,1715470246460,-461.067493,0.0001753,2]
[326829173,1715470246470,-461.067493,0.0001753,2]
[326829174,1715470246479,-653.377762,0.0001753,2]
[326829175,1715470246488,-653.377762,0.0001753,2]
[326829176,1715470246497,-151.0,0.0001753,2]
[326829177,1715470246507,-580.794439,0.0001753,2]
[326829178,1715470246515,-580.794439,0.0001753,2]
[326829179,1715470246525,-490.575787,0.0001753,2]
[326829180,1715470246534,-490.575787,0.0001753,2]
[326829181,1715470246543,-190.019864,0.0001753,2]
[326829182,1715470246552,-190.019864,0.0001753,2]
[326829183,1715470246562,-151.0,0.0001753,2]
[326829184,1715470246570,-152.3335532,0.00017531,2]
[326829185,1715470246580,-175.84005745,0.00017557,2]
[326829186,1715470246589,-237.26710164,0.00017565,2]
[326829187,1715470246598,-150.16275751,0.00017567,2]
[326829188,1715470246607,-171.7805636,0.00017574,2]
[326829189,1715470246616,-9606.44046729,0.00017627,2]
[326829190,1715470246625,-153.5496588,0.00017649,2]
[326829191,1715470246634,-504.00369942,0.00017665,2]
[326829192,1715470246643,-156.75019115,0.00017688,2]
[326829193,1715470246653,-152.34592658,0.00017748,2]
[326829194,1715470246662,-305.73949413,0.0001778,2]
[326829195,1715470246671,-384.75754566,0.0001778,3]
[326829196,1715470246680,-153.97788332,0.00017804,2]
[326829197,1715470246689,-237.26710164,0.00017816,2]
[326829198,1715470246698,-394.466583,0.00017848,2]
[326829199,1715470246707,-193.60534588,0.0001786,2]
[326829200,1715470246716,-151.0,0.0001786,2]
[326829201,1715470246725,-151.0,0.0001786,2]
[326829202,1715470246734,-151.0,0.0001786,2]
[326829203,1715470246743,-151.0,0.0001786,2]
[326829204,1715470246752,-151.0,0.0001786,2]
[326829205,1715470246762,-151.0,0.0001786,2]
[326829206,1715470246772,-151.0,0.0001786,2]
[326829207,1715470246781,-151.0,0.0001786,2]
[326829208,1715470246790,-151.0,0.0001786,2]
[326829209,1715470246799,-193.91522,0.0001786,2]
[326829210,1715470246808,-151.0,0.0001786,2]
[326829211,1715470246817,-151.544654,0.0001786,2]
[326829212,1715470246827,-394.466583,0.00017868,2]
[326829213,1715470246836,-2386.947883,0.00017868,2]
[326829214,1715470246845,-1716.8755868,0.00017868,2]
[326829215,1715470246854,-26642.112914,0.00017868,2]
[326829216,1715470246863,-31144.8750133,0.00017868,2]
[326829217,1715470246872,-852.4478313,0.00017868,2]
[326829218,1715470246882,-996.5193545,0.00017868,2]
[326829219,1715470246891,-3000.0,0.0001787,2]
[326829220,1715470246900,-205.62882979,0.0001787,7]
[326829221,1715470246909,-564.390102,0.0001787,2]
[326829222,1715470246917,-564.390102,0.0001787,2]
[326829223,1715470246926,-151.0,0.0001788,2]
[326829224,1715470246935,-151.0,0.0001788,2]
[326829225,1715470246944,-151.0,0.0001788,2]
[326829226,1715470246953,-151.0,0.0001788,2]
[326829227,1715470246962,-151.0,0.0001788,2]
[326829228,1715470246972,-151.0,0.0001788,2]
[326829229,1715470246981,-151.0,0.0001788,2]
[326829230,1715470246990,-151.0,0.0001788,2]
[326829231,1715470246999,-151.0,0.0001788,2]
[326829232,1715470247009,-151.0,0.0001788,2]
[326829233,1715470247018,-151.0,0.0001788,2]
[326829234,1715470247027,-151.0,0.0001788,2]
[326829235,1715470247036,-151.0,0.0001788,2]
[326829236,1715470247045,-151.0,0.0001788,2]
[326829237,1715470247054,-151.0,0.0001788,2]
[326829238,1715470247063,-250.743696,0.0001788,2]
[326829239,1715470247073,-151.0,0.0001788,2]
[326829240,1715470247082,-151.0,0.0001788,2]
[326829241,1715470247091,-151.0,0.0001788,2]
[326829242,1715470247100,-151.0,0.0001788,2]
[326829243,1715470247109,-151.0,0.0001788,2]
[326829244,1715470247119,-151.0,0.0001788,2]
[326829245,1715470247128,-151.0,0.0001788,2]
[326829246,1715470247137,-153.475904,0.0001788,2]
[326829247,1715470247146,-151.0,0.0001788,2]
[326829248,1715470247154,-151.0,0.0001788,2]
[326829249,1715470247163,-151.0,0.0001788,2]
[326829250,1715470247172,-151.0,0.0001788,2]
[326829251,1715470247181,-151.0,0.0001788,2]
[326829252,1715470247190,-155.277608,0.0001788,2]
[326829253,1715470247201,-151.0,0.0001788,2]
[326829254,1715470247211,-151.0,0.0001788,2]
[326829255,1715470247220,-151.0,0.0001788,2]
[326829256,1715470247229,-175.132502,0.0001788,2]
[326829257,1715470247238,-175.132502,0.0001788,2]
[326829258,1715470247248,-175.132502,0.0001788,2]
[326829259,1715470247257,-175.132502,0.0001788,2]
[326829260,1715470247267,-175.132502,0.0001788,2]
[326829261,1715470247276,-175.132502,0.0001788,2]
[326829262,1715470247284,-151.0,0.0001788,2]
[326829263,1715470247294,-151.0,0.0001788,2]
[326829264,1715470247303,-151.0,0.0001788,2]
[326829265,1715470247315,-151.0,0.0001788,2]
[326829266,1715470247325,-151.0,0.0001788,2]
[326829267,1715470247334,-151.0,0.0001788,2]
[326829268,1715470247344,-151.0,0.0001788,2]
[326829269,1715470247354,-151.0,0.0001788,2]
[326829270,1715470247363,-151.0,0.0001788,2]
[326829271,1715470247372,-151.0,0.0001788,2]
[326829272,1715470247381,-151.0,0.0001788,2]
[326829273,1715470247390,-151.0,0.0001788,2]
[326829274,1715470247399,-151.0,0.0001788,2]
[326829275,1715470247408,-151.0,0.0001788,2]
[326829276,1715470247416,-151.0,0.0001788,2]
[326829277,1715470247426,-151.0,0.0001788,2]
[326829278,1715470247435,-151.0,0.0001788,2]
[326829279,1715470247444,-173.766712,0.0001788,2]
[326829280,1715470247453,-151.0,0.0001788,2]
[326829281,1715470247461,-151.0,0.0001788,2]
[326829282,1715470247470,-151.0,0.0001788,2]
[326829283,1715470247479,-151.0,0.0001788,2]
[326829284,1715470247489,-151.0,0.0001788,2]
[326829285,1715470247497,-151.0,0.0001788,2]
[326829286,1715470247507,-151.0,0.0001788,2]
[326829287,1715470247515,-220.09256,0.0001788,2]
[326829288,1715470247525,-175.527306,0.0001788,2]
[326829289,1715470247534,-175.527306,0.0001788,2]
[326829290,1715470247543,-175.527306,0.0001788,2]
[326829291,1715470247552,-175.527306,0.0001788,2]
[326829292,1715470247561,-151.0,0.0001788,2]
[326829293,1715470247570,-151.0,0.0001788,2]
[326829294,1715470247579,-151.0,0.0001788,2]
[326829295,1715470247587,-151.0,0.0001788,2]
[326829296,1715470247596,-151.0,0.0001788,2]
[326829297,1715470247605,-151.0,0.0001788,2]
[326829298,1715470247614,-151.0,0.0001788,2]
[326829299,1715470247622,-175.527306,0.0001788,2]
[326829300,1715470247631,-151.0,0.0001788,2]
[326829301,1715470247640,-175.527306,0.0001788,2]
[326829302,1715470247649,-175.527306,0.0001788,2]
[326829303,1715470247658,-175.527306,0.0001788,2]
[326829304,1715470247666,-151.0,0.0001788,2]
[326829305,1715470247676,-151.0,0.0001788,2]
[326829306,1715470247685,-151.0,0.0001788,2]
[326829307,1715470247693,-151.0,0.0001788,2]
[326829308,1715470247702,-254.469746,0.0001788,2]
[326829309,1715470247711,-254.469746,0.0001788,2]
[326829310,1715470247721,-254.469746,0.0001788,2]
[326829311,1715470247730,-254.469746,0.0001788,2]
[326829312,1715470247739,-254.469746,0.0001788,2]
[326829313,1715470247748,-254.469746,0.0001788,2]
[326829314,1715470247758,-254.469746,0.0001788,2]
[326829315,1715470247767,-254.469746,0.0001788,2]
[326829316,1715470247776,-151.0,0.0001788,2]
[326829317,1715470247786,-151.0,0.0001788,2]
[326829318,1715470247795,-151.0,0.0001788,2]
[326829319,1715470247805,-151.0,0.0001788,2]
[326829320,1715470247814,-151.0,0.0001788,2]
[326829321,1715470247828,-151.0,0.0001788,2]
[326829322,1715470247838,-151.0,0.0001788,2]
[326829323,1715470247847,-151.0,0.0001788,2]
[326829324,1715470247857,-178.156304,0.0001788,2]
[326829325,1715470247867,-225.403238,0.0001788,2]
[326829326,1715470247877,-225.403238,0.0001788,2]
[326829327,1715470247886,-225.403238,0.0001788,2]
[326829328,1715470247895,-225.403238,0.0001788,2]
[326829329,1715470247905,-225.403238,0.0001788,2]
[326829330,1715470247915,-225.403238,0.0001788,2]
[326829331,1715470247924,-225.403238,0.0001788,2]